Cogmind - Beta 16.1 @@@ ROGUE MODE // 2026.02.24 @ 11:09:40 Player: Legion Result: Destroyed by G-67 Veteran with Field Laser Performance ------------- Evolutions (5) 2500 Regions Visited (9) 1800 Robots Destroyed (32) 160 Value Destroyed (549) 549 Prototype IDs (1) 20 Alien Tech Used (0) 0 Bonus (500) 500 TOTAL SCORE: 5529 Bonus ------- Entered DSFs 500 Cogmind --------- Core Integrity 0/1000 Matter 300/300 Energy 43/100 System Corruption 0% Temperature Cool (9) Movement Core (50) Location -5/Upper Caves Parts ------- > --- POWER (2) -------- (None) > --- PROPULSION (5) --- (None) > --- UTILITY (7) ------ (None) > --- WEAPON (3) ------- (None) > --- INVENTORY (5) ---- Advanced ECM Suite Improved Remote Datajack Peak State ------------ > --- POWER ------------ Fission Core Fission Core > --- PROPULSION ------- Gravmag System Improved Gravmag System Improved Gravmag System Improved Gravmag System Antigrav System > --- UTILITY ---------- Sensor Array Improved Targeting Computer Advanced Targeting Computer Transmission Jammer Improved Light Armor Plating > --- WEAPON ----------- Field Laser Remote Datajack Improved Plasma Cutter > --- INVENTORY -------- Light Ion Engine Combat Airjet Flight Unit Light Assault Rifle Heavy Missile Launcher [Rating: 62] Favorites ----------- Power Light Ion Engine Engine Light Ion Engine Power Core Fission Core Propulsion Flight Unit Leg Aluminum Leg Hover Unit Improved Gravmag System Flight Unit Flight Unit Utility ECM Suite Device ECM Suite Storage Small Storage Unit Processor Advanced Targeting Computer Protection Improved Light Armor Plating Weapon Medium Laser Energy Gun Medium Laser Ballistic Gun Light Assault Rifle Launcher Heavy Missile Launcher Special Weapon Remote Datajack Build | -11 -10 -9 -8 -7 -6 -6 -5 -5 -5 ------- Run | Yrd Mat Mat Mat Fac Fac DSF Fac Upp Upp Slots Evolved 10 | . . 2 2 2 2 . 2 . . Power 1 | . . . . 1 . . . . . Propulsion 3 | . . 1 1 . . . 1 . . Utility 5 | . . 1 1 1 1 . 1 . . Weapon 1 | . . . . . 1 . . . . Parts Attached 44 | 6 4 2 10 6 . 8 3 2 3 Power 5 | 1 . 1 . 1 . 2 . . . Engine 3 | 1 . 1 . 1 . . . . . Core 2 | . . . . . . 2 . . . Reactor . | . . . . . . . . . . Propulsion 17 | 2 3 . 3 1 . 5 2 1 . Treads . | . . . . . . . . . . Leg 2 | 2 . . . . . . . . . Wheel . | . . . . . . . . . . Hover 8 | . . . . . . 5 2 1 . Flight 7 | . 3 . 3 1 . . . . . Utility 12 | 1 1 1 4 2 . 1 . . 2 Device 7 | . 1 1 3 1 . . . . 1 Storage 1 | 1 . . . . . . . . . Processor 2 | . . . . 1 . 1 . . . Hackware . | . . . . . . . . . . Protection 2 | . . . 1 . . . . . 1 Artifact . | . . . . . . . . . . Weapon 10 | 2 . . 3 2 . . 1 1 1 Energy Gun 4 | 2 . . 2 . . . . . . Energy Cannon . | . . . . . . . . . . Ballistic Gun 2 | . . . . 1 . . . . 1 Ballistic Cannon . | . . . . . . . . . . Launcher 2 | . . . 1 . . . . 1 . Special Weapon 2 | . . . . 1 . . 1 . . Impact Weapon . | . . . . . . . . . . Slashing Weapon . | . . . . . . . . . . Piercing Weapon . | . . . . . . . . . . Special Melee Weapon . | . . . . . . . . . . Unidentified Prototypes 1 | . . . 1 . . . . . . Parts Lost 31 | . 1 . 4 . . 1 2 15 8 Power 3 | . . . . . . . . 3 . Propulsion 11 | . 1 . 1 . . 1 1 6 1 Utility 10 | . . . 2 . . . 1 2 5 Weapon 7 | . . . 1 . . . . 4 2 Highest Loss Streak 9 | . 1 . 4 . . 1 2 9 8 To Critical Strikes . | . . . . . . . . . . Average Backups 4 | 1 5 7 5 4 5 4 4 3 3 Power . | . 1 1 . . . . 1 . . Propulsion 1 | . 1 1 . 1 2 2 2 1 . Utility . | . . . 1 . 1 . . . 1 Weapon 2 | . 1 3 3 2 2 1 1 1 . Tool/Special . | . . . . . . . . . . Unused Backups 6 | . . . 3 1 . . . . 2 Power 1 | . . . 1 . . . . . . Propulsion . | . . . . . . . . . . Utility 2 | . . . . 1 . . . . 1 Weapon 2 | . . . 2 . . . . . . Tool/Special 1 | . . . . . . . . . 1 Average Slot Usage (%) 77 | . 95 86 78 87 80 85 86 53 21 Engine 6 | . 14 11 9 7 6 4 . . . Core 1 | . . . . . . 3 11 1 . Hover 5 | . . . . . . 23 25 15 4 Flight 16 | . 21 20 23 30 26 2 . . . Device 17 | . 11 22 24 23 20 20 12 11 9 Storage 3 | . 14 11 2 . . . . . . Processor 4 | . . . . 3 6 11 11 10 4 Protection 3 | . . . 5 7 6 6 5 . . Energy Gun 12 | . 28 22 13 11 . . 5 3 . Ballistic Gun 1 | . . . . 2 6 6 2 . . Special Weapon 1 | . . . . 1 6 6 8 4 . Peak Build Rating 62 | 6 7 9 18 26 26 52 62 62 18 Average Rating 21 | 5 6 8 14 21 26 42 56 32 12 On Entrance 21 | . 6 7 9 17 26 26 52 62 12 Avg Prop Armor Cover (%) 13 | . . . . . . 3 . 11 15 Naked Turns 8 | . . . . . . . . . 8 Heaviest Build 34 | 12 14 15 16 15 14 34 34 33 14 Greatest Support 50 | 20 20 8 17 17 17 40 50 50 3 Greatest Overweight (x) 4 | 1 3 1 1 . . 1 . 1 4 Average Overweight (x) . | . . 1 . . . . . . . Largest Inventory Capacity 8 | 8 8 8 8 5 5 5 5 5 5 Average Capacity 5 | 6 8 8 5 5 5 5 5 5 5 Most Carried 8 | 2 7 8 8 5 5 5 5 5 5 Average Carried 4 | 1 5 7 5 4 5 4 4 3 3 Final Capacity 8 | 8 8 8 5 5 5 5 5 5 5 Final Carried 8 | 2 7 8 3 5 5 5 5 1 2 Class Distribution -------------------- 32% | Mutant 22% | Infiltrator-Mutant 15% | Infiltrator-Sprinter 14% | Sprinter 10% | Gunner 4% | Infiltrator-Gunner Dominant Class ---------------- Mutant | -10/Materials Infiltrator-Mutant | -9/Materials Infiltrator-Sprinter | -8/Materials Sprinter | -7/Factory Sprinter | -6/Factory Infiltrator-Mutant | -6/DSF Gunner | -5/Factory Mutant | -5/Upper Caves Mutant | -5/Upper Caves Resources | -11 -10 -9 -8 -7 -6 -6 -5 -5 -5 ----------- Run | Yrd Mat Mat Mat Fac Fac DSF Fac Upp Upp Matter Collected 772 | 226 69 . 106 . . 7 25 205 134 Remotely . | . . . . . . . . . . Salvage Created 517 | . 134 . 114 . . . 11 204 54 Parts 34 | . 10 . 10 . . . 1 11 2 Haulers Intercepted . | . . . . . . . . . . Recyclers Shooed 1 | . . . 1 . . . . . . Parts Field Recycled . | . . . . . . . . . . Retrieved Matter . | . . . . . . . . . . Parts Self-Destructed 19 | . . . . . . . . 13 6 Prevented . | . . . . . . . . . . Parts Restored . | . . . . . . . . . . Kills | -11 -10 -9 -8 -7 -6 -6 -5 -5 -5 ------- Run | Yrd Mat Mat Mat Fac Fac DSF Fac Upp Upp Combat Hostiles Destroyed 30 | . 8 . 10 . . . . 10 2 Guns 15 | . 8 . 4 . . . . 1 2 AOE 15 | . . . 6 . . . . 9 . Classes Destroyed 3 | . 1 . 1 . . . . 1 . Worker 2 | . . . 1 . . . 1 . . Swarmer 29 | . 8 . 10 . . . . 9 2 Grunt 1 | . . . . . . . . 1 . Best Kill Streak 6 | . 3 . 6 . . . 1 5 2 Combat Bots Only 6 | . 3 . 6 . . . . 5 2 Max Kills in Single Turn 4 | . 2 . 4 . . . 1 4 1 Gunslinging 1 | . 1 . . . . . . . . Exploded 4 | . . . 3 . . . . 4 . Melee . | . . . . . . . . . . Uniques/NPCs Destroyed . | . . . . . . . . . . Combat | -11 -10 -9 -8 -7 -6 -6 -5 -5 -5 -------- Run | Yrd Mat Mat Mat Fac Fac DSF Fac Upp Upp Hostile Shots Fired 385 | . 32 . 71 9 . 15 12 126 120 Missed 159 | . 8 . 36 6 . 6 5 49 49 Hits 226 | . 24 . 35 3 . 9 7 77 71 Melee 8 | . . . . . . 6 . . 2 Projectile 218 | . 24 . 35 3 . 3 7 77 69 AOE 2 | . . . . . . 2 . . . Critical Strikes 2 | . . . . . . 1 . . 1 Damage Taken 3508 | . 194 . 393 23 . 275 147 1296 1180 Core 1247 | . 51 . 127 . . 54 . 411 604 Absorbed by Shields . | . . . . . . . . . . Regen/Repaired (Parts) 9 | . . 9 . . . . . . . Core Remaining (%) 91 | 100 79 100 76 100 . 93 . . . Volleys Fired 74 | . 12 . 16 7 . 1 10 16 12 Largest 2 | . 2 . 2 2 . 1 2 2 2 Hottest 102 | . 100 . 100 93 . 5 83 102 43 Shots Fired 110 | . 24 . 27 9 . 1 13 23 13 Gun 83 | . 24 . 23 4 . . 5 14 13 Cannon . | . . . . . . . . . . Launcher 8 | . . . 4 . . . . 4 . Special 19 | . . . . 5 . 1 8 5 . Kinetic 13 | . . . . . . . . . 13 Thermal 78 | . 24 . 23 4 . . 8 19 . Explosive 8 | . . . 4 . . . . 4 . Electromagnetic . | . . . . . . . . . . Robot Hit Streak 5 | . 3 . 3 5 . 3 3 2 5 Robot Miss Streak 3 | . 3 . 3 1 . . 2 2 1 Penetration Max . | . . . . . . . . . . Secondary Targets 1 | . 1 . . . . . . . . Max Gunslinging Chain 1 | . 1 . . . . . . . . Shots Hit Robots 59 | . 12 . 11 7 . 1 8 10 10 Core Hits 36 | . 8 . 9 1 . . 2 11 5 Critical Kills . | . . . . . . . . . . Critical Parts Destroyed . | . . . . . . . . . . Critical Strikes 1 | . . . . . . . . 1 . Burn 1 | . . . . . . . . 1 . Melee Attacks . | . . . . . . . . . . Impact . | . . . . . . . . . . Slashing . | . . . . . . . . . . Piercing . | . . . . . . . . . . Sneak Attacks . | . . . . . . . . . . Combat Hostiles . | . . . . . . . . . . Follow-up Attacks . | . . . . . . . . . . Damage Inflicted 1934 | . 150 . 562 50 . . 99 946 127 Guns 600 | . 150 . 105 50 . . 69 102 124 Cannons . | . . . . . . . . . . Explosions 1265 | . . . 457 . . . . 808 . Melee . | . . . . . . . . . . Ramming 3 | . . . . . . . . . 3 Kinetic 124 | . . . . . . . . . 124 Thermal 542 | . 150 . 105 50 . . 99 138 . Explosive 1265 | . . . 457 . . . . 808 . Electromagnetic . | . . . . . . . . . . Impact . | . . . . . . . . . . Slashing . | . . . . . . . . . . Piercing . | . . . . . . . . . . Highest Corruption . | . . . . . . . . . . Average Corruption . | . . . . . . . . . . Corruption Purged . | . . . . . . . . . . Corruption Blocked . | . . . . . . . . . . Overload Shots . | . . . . . . . . . . Overflow Damage 99 | . . . 60 . . . . 39 . Projectiles . | . . . . . . . . . . Explosions 99 | . . . 60 . . . . 39 . Melee . | . . . . . . . . . . Knockbacks . | . . . . . . . . . . Impact . | . . . . . . . . . . Kinetic . | . . . . . . . . . . Secondary . | . . . . . . . . . . Self-Inflicted Damage 76 | . . . 75 . . . . . 1 Shots 3 | . . . 3 . . . . . . Rammed 2 | . . . . . . . . . 2 Targets Rammed 2 | . . . . . . . . . 2 Kicked . | . . . . . . . . . . Crushed . | . . . . . . . . . . Highest Temperature 175 | . 156 . 72 56 . . 56 175 . Average Temperature 59 | . 57 . 28 27 . . 23 104 . Received Heat Transfer 249 | . 18 . 45 6 . . 18 90 72 Siege Activations . | . . . . . . . . . . Martial Activations . | . . . . . . . . . . Shielding Activations . | . . . . . . . . . . Robots Disrupted . | . . . . . . . . . . Combat Hostiles . | . . . . . . . . . . Robots Corrupted . | . . . . . . . . . . Combat Hostiles . | . . . . . . . . . . Parts Fried . | . . . . . . . . . . Impact Corruptions . | . . . . . . . . . . Robots Melted . | . . . . . . . . . . Combat Hostiles . | . . . . . . . . . . Parts Melted 2 | . . . 1 . . . . 1 . Heat Transferred 1554 | . 444 . 370 148 . . 222 370 . Parts Sabotaged . | . . . . . . . . . . Parts Stolen . | . . . . . . . . . . Parts Stripped . | . . . . . . . . . . Power Chain Reactions . | . . . . . . . . . . Alert | -11 -10 -9 -8 -7 -6 -6 -5 -5 -5 ------- Run | Yrd Mat Mat Mat Fac Fac DSF Fac Upp Upp Maximum Alert Level . | . . . . . . . . . . Low Security (%) 100 | 100 100 100 100 100 100 100 100 . . Level 1 . | . . . . . . . . . . Level 2 . | . . . . . . . . . . Level 3 . | . . . . . . . . . . Level 4 . | . . . . . . . . . . Level 5 . | . . . . . . . . . . High Security . | . . . . . . . . . . Max Security . | . . . . . . . . . . Peak Influence 174 | . 65 22 174 74 . . 55 . . Initial 74 | . . 22 . 74 . . . . . Average 29 | . 32 2 91 14 . . 17 . . Influence Increases 1156 | . 201 . 334 15 . . 101 390 115 Destroy 0b10 Robot/C 600 | . 160 . 200 . . . . 200 40 Destroy 0b10 Robot/NC 10 | . . . 5 . . . 5 . . Destroy Leader 70 | . 30 . 30 . . . . 10 . Successful Hack 24 | . 11 . 7 . . . 6 . . Disable Machine 30 | . . . . . . . 30 . . Destroy Structure 32 | . . . 32 . . . . . . Partial Spotted 60 | . . . 45 15 . . . . . Lose Combat Pursuer 330 | . . . 15 . . . 60 180 75 Influence Decreases 1039 | . 146 55 170 179 . . 56 235 198 Entered New Map 179 | . . 33 . 90 . . . 18 38 Time Decay 603 | . 136 22 130 89 . . 56 90 80 Lost Part 257 | . 10 . 40 . . . . 127 80 Squads Dispatched 5 | . . . 2 1 . 1 1 . . Investigation . | . . . . . . . . . . Extermination . | . . . . . . . . . . Reinforcement 4 | . . . 1 1 . 1 1 . . Assault . | . . . . . . . . . . Garrison 1 | . . . 1 . . . . . . Intercept . | . . . . . . . . . . Searches Triggered . | . . . . . . . . . . Construction Impeded . | . . . . . . . . . . Haulers Reinforced . | . . . . . . . . . . Active Scanning Responses . | . . . . . . . . . . Cargo Convoy Interrupts . | . . . . . . . . . . Stealth | -11 -10 -9 -8 -7 -6 -6 -5 -5 -5 --------- Run | Yrd Mat Mat Mat Fac Fac DSF Fac Upp Upp Distress Signals 4 | . 3 . 1 . . . . . . Communications Jammed . | . . . . . . . . . . Distress Signals . | . . . . . . . . . . Times Spotted 109 | . 16 2 27 2 . 4 11 27 20 Peak Tracking Total 11 | . 4 1 7 2 . 4 7 11 10 Tactical Retreats 18 | . 2 . 6 1 . 1 2 4 2 ECM-based Alert Blocks 21 | . 5 . 14 1 . 1 . . . Traps | -11 -10 -9 -8 -7 -6 -6 -5 -5 -5 ------- Run | Yrd Mat Mat Mat Fac Fac DSF Fac Upp Upp Traps Triggered . | . . . . . . . . . . Indirectly . | . . . . . . . . . . Trap Hack Attempts . | . . . . . . . . . . Triggered . | . . . . . . . . . . Disarmed . | . . . . . . . . . . Reprogrammed . | . . . . . . . . . . Reused . | . . . . . . . . . . Traps Extracted . | . . . . . . . . . . Installed . | . . . . . . . . . . Triggered . | . . . . . . . . . . Machines | -11 -10 -9 -8 -7 -6 -6 -5 -5 -5 ---------- Run | Yrd Mat Mat Mat Fac Fac DSF Fac Upp Upp Machines Disabled 4 | . . . . . . . 2 2 . Max in Single Turn 1 | . . . . . . . 1 1 . Machines Repaired . | . . . . . . . . . . Machines Dismantled 2 | . . . . . . . 2 . . Machines Sabotaged . | . . . . . . . . . . Overloaded Fab Kills . | . . . . . . . . . . Hacking | -11 -10 -9 -8 -7 -6 -6 -5 -5 -5 --------- Run | Yrd Mat Mat Mat Fac Fac DSF Fac Upp Upp Machines Accessed 15 | . 2 2 5 1 1 . 4 . . Terminals 9 | . 2 . 3 1 1 . 2 . . Fabricators . | . . . . . . . . . . Repair Stations 2 | . . 1 1 . . . . . . Recycling Units 2 | . . . 1 . . . 1 . . Scanalyzers 2 | . . 1 . . . . 1 . . Garrison Access . | . . . . . . . . . . Total Hacks 22 | . 2 5 8 1 1 . 5 . . Successful 12 | . 2 2 4 1 1 . 2 . . Failed 10 | . . 3 4 . . . 3 . . Catastrophic 2 | . . . 2 . . . . . . Database Lockouts . | . . . . . . . . . . Manual 9 | . 2 . 2 . . . 5 . . Terminals 11 | . 2 . 4 1 1 . 3 . . Fabricators . | . . . . . . . . . . Repair Stations 3 | . . 2 1 . . . . . . Recycling Units 4 | . . . 3 . . . 1 . . Scanalyzers 4 | . . 3 . . . . 1 . . Garrison Access . | . . . . . . . . . . Terminal Hacks 5 | . 1 . 1 1 1 . 1 . . Open DSF 2 | . . . . 1 1 . . . . Recall Investigation 1 | . . . 1 . . . . . . Hauler Manifests 1 | . 1 . . . . . . . . Zone Layout 1 | . . . . . . . 1 . . Fabricator Hacks . | . . . . . . . . . . Repair Station Hacks 3 | . . 2 1 . . . . . . Scan Component 1 | . . 1 . . . . . . . Repair 1 | . . 1 . . . . . . . Refit 1 | . . . 1 . . . . . . Recycling Unit Hacks 2 | . . . 2 . . . . . . Report Inventory 1 | . . . 1 . . . . . . Retrieve Components 1 | . . . 1 . . . . . . Scanalyzer . | . . . . . . . . . . Garrison Access Hacks . | . . . . . . . . . . Unauthorized Hacks 2 | . 1 . . . . . 1 . . Terminals 2 | . 1 . . . . . 1 . . Assimilate 2 | . 1 . . . . . 1 . . Fabricators . | . . . . . . . . . . Repair Stations . | . . . . . . . . . . Recycling Units . | . . . . . . . . . . Scanalyzers . | . . . . . . . . . . Garrison Access . | . . . . . . . . . . Data Cores Recovered . | . . . . . . . . . . Used . | . . . . . . . . . . Hacking Detections 10 | . 2 1 4 . 1 . 2 . . Full Trace Events 1 | . . . 1 . . . . . . Feedback Events . | . . . . . . . . . . Feedback Blocked . | . . . . . . . . . . Robot Schematics Acquired . | . . . . . . . . . . Robots Built . | . . . . . . . . . . Authchips . | . . . . . . . . . . Time . | . . . . . . . . . . Total Robot Build Rating . | . . . . . . . . . . Part Schematics Acquired . | . . . . . . . . . . Parts Built . | . . . . . . . . . . Authchips . | . . . . . . . . . . Time . | . . . . . . . . . . Total Part Build Rating . | . . . . . . . . . . Part Studies Acquired . | . . . . . . . . . . Parts Repaired 1 | . . 1 . . . . . . . Time 26 | . . 26 . . . . . . . Parts Recycled . | . . . . . . . . . . Recycled Matter . | . . . . . . . . . . Retrieved Matter . | . . . . . . . . . . Retrieved Components 6 | . . . 6 . . . . . . Parts Scanalyzed . | . . . . . . . . . . Part Schematics Acquired . | . . . . . . . . . . Parts Damaged . | . . . . . . . . . . Bothacking | -11 -10 -9 -8 -7 -6 -6 -5 -5 -5 ------------ Run | Yrd Mat Mat Mat Fac Fac DSF Fac Upp Upp Used RIF Installer . | . . . . . . . . . . Robots Hacked 4 | . . . . 2 . 1 1 . . Non-combat 2 | . . . . 1 . . 1 . . Combat 2 | . . . . 1 . 1 . . . Robot Hacks Applied 6 | . . . . 3 . 1 2 . . parse_system 3 | . . . . 2 . 1 . . . no_distress 2 | . . . . 1 . . 1 . . find_recycling 1 | . . . . . . . 1 . . Relay Couplers Released . | . . . . . . . . . . Fabnet Peak Effective % . | . . . . . . . . . . Robots Rewired . | . . . . . . . . . . Allies Hacked . | . . . . . . . . . . Hacks Repelled . | . . . . . . . . . . Allies | -11 -10 -9 -8 -7 -6 -6 -5 -5 -5 -------- Run | Yrd Mat Mat Mat Fac Fac DSF Fac Upp Upp Total Allies 1 | . . . . . . . 1 . . Largest Group . | . . . . . . . . . . Highest-Rated Group . | . . . . . . . . . . Highest-Rated Ally . | . . . . . . . . . . Total Orders . | . . . . . . . . . . Ally Attacks . | . . . . . . . . . . Total Damage . | . . . . . . . . . . Kills . | . . . . . . . . . . Allies Corrupted . | . . . . . . . . . . Allies Melted . | . . . . . . . . . . Intel | -11 -10 -9 -8 -7 -6 -6 -5 -5 -5 ------- Run | Yrd Mat Mat Mat Fac Fac DSF Fac Upp Upp Active Infowar (turns) 1647 | . 231 248 333 448 4 127 183 73 . Sensors 661 | . . . 1 369 4 46 183 58 . Structural 544 | . . 248 296 . . . . . . Jamming 297 | . . . . 2 . 39 183 73 . ECM 1393 | . 231 248 307 417 4 127 59 . . Robot Analysis Total . | . . . . . . . . . . Derelict Logs Recovered 2 | . . . . . . . . 1 1 Drone Launches . | . . . . . . . . . . Drone Recoveries . | . . . . . . . . . . Exploration | -11 -10 -9 -8 -7 -6 -6 -5 -5 -5 ------------- Run | Yrd Mat Mat Mat Fac Fac DSF Fac Upp Upp Turns Passed 2088 | 60 288 248 333 448 4 127 183 235 162 Spaces Moved 2056 | 44 189 153 359 393 14 74 286 294 250 Core 362 | 6 . . . . . . . 106 250 Treads . | . . . . . . . . . . Legs 67 | 38 29 . . . . . . . . Wheels . | . . . . . . . . . . Hover 466 | . . . . . . 69 286 111 . Flight 1161 | . 160 153 359 393 14 5 . 77 . Fastest Speed 29 | 50 117 117 29 29 29 29 44 40 50 Average Speed 57 | 112 121 117 44 29 29 48 46 49 51 Slowest Speed 280 | 120 280 117 117 29 29 110 48 110 250 Overloaded Moves . | . . . . . . . . . . Propulsion Burnouts . | . . . . . . . . . . Robots Hopped 1 | . . . . . . . . 1 . Potential Cave-ins . | . . . . . . . . . . Cave-ins Triggered . | . . . . . . . . . . Exploration Rate (%) 26 | 4 40 18 34 10 1 52 9 55 40 Regions Visited 9 Branch Regions 2 Pre-discovered Areas 1 | . . . . . . . . . 1 Known Exits Taken 2 | . . . . . 1 . . 1 . Unknown Exits Taken 6 | 1 1 1 1 1 . . 1 . . Scrap Searched 3 | . . . . . . . . 1 2 Spaces Dug 18 | . . . . . . . . 18 . Terrain Destroyed 84 | . . . 29 . . . . 55 . Melee . | . . . . . . . . . . Projectile . | . . . . . . . . . . AOE 84 | . . . 29 . . . . 55 . Terrain Rammed . | . . . . . . . . . . Walls Destroyed . | . . . . . . . . . . Machines Disabled . | . . . . . . . . . . Actions | -11 -10 -9 -8 -7 -6 -6 -5 -5 -5 --------- Run | Yrd Mat Mat Mat Fac Fac DSF Fac Upp Upp Total 2832 | 51 223 222 506 718 13 162 311 354 272 Wait 600 | . 14 61 109 301 . 71 2 42 . Move 2045 | 43 188 152 358 392 13 73 285 291 250 Hop 1 | . . . . . . . . 1 . Pick Up 23 | 2 3 4 3 4 . 2 1 . 4 Fast Attach 29 | 6 4 1 4 5 . 7 1 . 1 Attach 18 | . . 1 6 . . 3 1 4 3 Detach 5 | . 2 . 2 . . 1 . . . Swap 6 | . . 1 1 3 . . 1 . . Drop 19 | . . 2 7 6 . 4 . . . Fire 74 | . 12 . 16 7 . 1 10 16 12 Melee . | . . . . . . . . . . Ram 2 | . . . . . . . . . 2 Kick . | . . . . . . . . . . Crush . | . . . . . . . . . . Escape Stasis . | . . . . . . . . . . Rewire . | . . . . . . . . . . Trap . | . . . . . . . . . . Miscellaneous 10 | . . . . . . . 10 . . Route ------- -11/Scrapyard -10/Materials (discovered 3 exits: *Mat / [*Min x2]) -9/Materials -8/Materials -7/Factory -6/Factory -6/DSF -5/Factory -5/Upper Caves -5/Upper Caves History --------- Turn | Location | Event 13 | -11/Scrapyard | Discovered new exit (range 15) 61 | -11/Scrapyard | Entered Materials 85 | -10/Materials | Discovered new exit (range 7) 174 | -10/Materials | Discovered new exit (range 6) 307 | -10/Materials | Build established: Mutant 330 | -10/Materials | Discovered new exit (range 15) 349 | -10/Materials | Entered another Materials area 349 | -9/Materials | Evolved 2 slots: Propulsion x1, Utility x1 515 | -9/Materials | Discovered new exit (range 16) 583 | -9/Materials | Repaired Flight Unit 597 | -9/Materials | Entered another Materials area 597 | -8/Materials | Evolved 2 slots: Propulsion x1, Utility x1 647 | -8/Materials | Build established: Infiltrator-Mutant 881 | -8/Materials | Garrison activated, responded to threat 924 | -8/Materials | Lost 4 parts (1n2u1w) 925 | -8/Materials | Discovered new exit (range 11) 930 | -8/Materials | Entered Factory 930 | -7/Factory | Evolved 2 slots: Power x1, Utility x1 1369 | -7/Factory | Discovered new exit (range 3) 1378 | -7/Factory | Entered another Factory area 1378 | -6/Factory | Evolved 2 slots: Utility x1, Weapon x1 1382 | -6/Factory | Identified exit to DSF 1382 | -6/Factory | Entered DSF 1484 | -6/DSF | Additional patrols routed to DSF 1501 | -6/DSF | Discovered new exit (range 12) 1509 | -6/DSF | Entered Factory 1509 | -5/Factory | Evolved 2 slots: Propulsion x1, Utility x1 1591 | -5/Factory | Discovered new exit (range 14) 1692 | -5/Factory | Entered Upper Caves 1701 | -5/Upper Caves | Attracted the attention of an 0b10 checkpoint 1701 | -5/Upper Caves | Identified exit to Upper Caves 1760 | -5/Upper Caves | Lost 5 parts (2p1n1u1w) 1849 | -5/Upper Caves | Attracted the attention of an 0b10 base 1927 | -5/Upper Caves | Entered another Upper Caves area 1931 | -5/Upper Caves | Lost 9 parts (5n1u3w) 2046 | -5/Upper Caves | Core integrity fell below 50% 2081 | -5/Upper Caves | Core integrity fell below 20% 2082 | -5/Upper Caves | Attracted the attention of an 0b10 checkpoint 2089 | -5/Upper Caves | Destroyed by G-67 Veteran with Field Laser Last Messages --------------- 02064_ Acquired 25 matter. 02064_ Imp. Medium Armor Plating destroyed. 02068_ Acquired Autogun. 02069_ VTOL Module fries itself beyond repair. 02069_ S-27 Virus destroyed. 02069_ Lgt. Assault Rifle destroyed. 02071_ VTOL Module fries itself beyond repair. 02074_ Destroyed VTOL Module. 02078_ Cmb. Airjet destroyed. 02079_ S-27 Virus destroyed. 02080_ Autogun destroyed. 02081_ Acquired 21 matter. 02081_ Imp. Actuator Array destroyed. 02082_ Y-64 Sentinel: "INTERCEPTING UNREGISTERED DERELICT." 02082_ Slammed into S-27 Virus. 02082_ Destabilizing: Core damaged (-30). 02083_ VTOL Module fries itself beyond repair. 02083_ Slammed into S-27 Virus. 02084_ Slug penetrates Wall. 02088_ Critical hit (Burn: +37). Map ----- +----------------------------------------------------+ | ?????????????????????????????????????????????????? | | ?????????????????????????????????????????????????? | | ???????????????????????????????????? ????????????? | | ???????????????????????????????? ????????????? | | ????????????????????????????????? ##??????????? | | ???????????????????????????? ? ??? #??????????? | | ???????????????????????????? ???? #??????????? | | ????????????????????????????? ???# #??????????? | | ?????????????????????????????# ???# #??????????# | | ??????????????????????? ###### ??## #####?????## | | ??????????????????????? ?## ####### | | ??????????????????????? ## | | ????????????????????????# | | ?????????????????????????# ##### | | ??????????????????#???????# #???# | | ?????????????????? ##???????# ##???## | | ?????????????????? #?????## ##?????# | | ?????????????????? ###### ##??????# | | ?????????????????? ###??###### | | ??????????????????# ####????# ## | | ??????????????????# ##??????## | | ??????????????????? ## ##???????# | | ???????????????????????## ##???????## | | ???????????????????????# ###??????### | | ???????????????????????# #????##?## | | ???????????????????????##@ ### #???# "#" | | ????????????????????????# ##?## #???#""" | | ????????????????????????# ##???# #???## | | ????????????????????#####s #????####????##" | | ???????????????????## Ys #?????????????##### | | ???????????????????# ##???????????????## | | ??????????????????##% % g #????????????????# | | ??????????????????#%% ## gg #????????????????# | | ??????????????????# % #####g #????????????????## | | ??????????????????## #???#g ????????????????## | | ???????????????????####???# # ???????????????## | | ??????????????????????????# # ??????????????? | | ?????????????????????????? #? ### ?????????????? | | ?????????????????????????? #? #????????????????? | | ??????????????????????????####??#????????# ## | | ??????????????????????????????????????????# | | ??????????????????????????????????????????# | | ?????????????????????????????????????????# ## | | ?????????????????????????????????????????# ???## | | ???????????????????????????????????????? ???????? | | ?????????????????????????????????????????????????? | | ?????????????????????????????????????????????????? | | ?????????????????????????????????????????????????? | | ?????????????????????????????????????????????????? | | ?????????????????????????????????????????????????? | +----------------------------------------------------+ Best States ------------- Heat Dissipation 40 Energy Generation 31 Energy Capacity 520 Matter Stores 300 Matter Capacity 300 Sight Range 16 Robot Scan Range 14 Terrain Scan Density 10 ECM Strength 1 Jamming Range 12 Armor Coverage 225 Evasion (%) 71 Targeting Accuracy 14 Item Schematics ----------------- None Robot Schematics ------------------ None Fabricated ------------ Nothing Repaired ---------- Flight Unit | 55% | -9/Materials Studied --------- None Alien Tech Used ----------------- None Achievements -------------- No Signal True Hacker Challenges ------------ None Game ------ Seed TeleporterCoolantDrillbomb Manual? 0 Play Time 01:00:04 Cumulative 32.2 hours Start 2026.02.24 @ 10:10:42 End 2026.02.24 @ 11:09:40 Sessions 1 Manual Loads 0 Difficulty Rogue Special Mode None Game No. 26 Rogue 21 Adventurer 5 Explorer 0 Win Type - Total 0 Types 0/0/0/0/0/0/0/0/0/0 Lore% 16 Gallery% 26 Achievement% 21 Wizard Run 0 Options --------- Layout 0 ASCII 0 Keyboard 1 Movement Numpad Keybinds 0 Fullscreen 1 Font 24/Smallcaps Map View 76x50 Zoom Use 0% Tactical HUD 1 Map Filters NONE Filters NONE Steam 1 RUN: eba49f6c-3e18-4483-a173-eb21855ff609